[Event "Schack-SM 2022: Mastarklassen-Elit"]
[Site "Fyrishov, Idrottsgatan 2, Uppsala, Sweden"]
[Date "2022.07.10"]
[Round "9.5"]
[White "Wiedenkeller, Michael"]
[Black "Cederstam, Carl"]
[Result "1/2-1/2"]
[TimeControl "90 minutes for 40 moves + 30 minutes for the rest of the game + 30 seconds per move from move one."]
[WhiteTitle "IM"]
[BlackTitle "FM"]
[WhiteFideId "1700146"]
[BlackFideId "1713329"]
[WhiteElo "2437"]
[BlackElo "2332"]

1. d4 {[%clk 01:30:07]} {[%emt 00:00:52]} d5 {[%clk 01:30:53]} {[%emt
00:00:07]} 2. c4 {[%clk 01:30:02]} {[%emt 00:00:35]} e6 {[%clk 01:31:17]}
{[%emt 00:00:06]} 3. Nf3 {[%clk 01:30:04]} {[%emt 00:00:28]} a6 {[%clk
01:31:37]} {[%emt 00:00:10]} 4. Nbd2 {[%clk 01:29:08]} {[%emt 00:01:26]} Nf6
{[%clk 01:24:12]} {[%emt 00:07:55]} 5. g3 {[%clk 01:28:37]} {[%emt 00:01:01]}
dxc4 {[%clk 01:21:54]} {[%emt 00:02:48]} 6. Nxc4 {[%clk 01:27:22]} {[%emt
00:01:45]} b5 {[%clk 01:20:09]} {[%emt 00:02:15]} 7. Nce5 {[%clk 01:27:05]}
{[%emt 00:00:47]} Bb7 {[%clk 01:18:03]} {[%emt 00:02:36]} 8. Bg2 {[%clk
01:27:02]} {[%emt 00:00:33]} c5 {[%clk 01:15:30]} {[%emt 00:03:03]} 9. Nxf7
{[%clk 01:22:15]} {[%emt 00:05:17]} Kxf7 {[%clk 01:08:59]} {[%emt 00:07:01]} 10.
Ng5+ {[%clk 01:20:38]} {[%emt 00:02:06]} Ke7 {[%clk 01:08:56]} {[%emt
00:00:35]} 11. Bxb7 {[%clk 01:20:19]} {[%emt 00:00:49]} Ra7 {[%clk 01:09:21]}
{[%emt 00:00:04]} 12. Bg2 {[%clk 01:18:39]} {[%emt 00:02:10]} Qxd4 {[%clk
01:09:03]} {[%emt 00:00:49]} 13. Qc2 {[%clk 01:13:25]} {[%emt 00:05:43]} Nd5
{[%clk 01:04:03]} {[%emt 00:05:29]} 14. O-O {[%clk 01:08:17]} {[%emt 00:05:38]}
Nc6 {[%clk 00:59:03]} {[%emt 00:05:29]} 15. Bd2 {[%clk 00:57:01]} {[%emt
00:11:48]} g6 {[%clk 00:52:34]} 16. Rac1 {[%clk 00:40:49]} {[%emt 00:23:41]} c4
{[%clk 00:50:47]} 17. Rfd1 {[%clk 00:37:33]} {[%emt 00:06:03]} Bg7 {[%clk
00:48:51]} 18. Nxe6 {[%clk 00:20:24]} {[%emt 00:20:06]} Kxe6 {[%clk 00:43:32]}
19. Bf4 {[%clk 00:15:39]} {[%emt 00:11:04]} Ndb4 {[%clk 00:35:11]} 20. Rxd4
{[%clk 00:15:39]} {[%emt 00:09:21]} Nxc2 {[%clk 00:35:28]} 21. Rd6+ {[%clk
00:12:54]} {[%emt 00:03:28]} Ke7 {[%clk 00:33:58]} 22. Rxc2 {[%clk 00:12:49]}
{[%emt 00:02:34]} Nd4 {[%clk 00:33:56]} 23. Rd2 {[%clk 00:10:20]} {[%emt
00:03:32]} g5 {[%clk 00:33:13]} 24. R6xd4 {[%clk 00:07:56]} {[%emt 00:04:06]}
Bxd4 {[%clk 00:33:16]} 25. Bxg5+ {[%clk 00:07:58]} {[%emt 00:00:55]} Bf6 {[%clk
00:33:37]} 26. Be3 {[%clk 00:04:34]} {[%emt 00:04:04]} Rd7 {[%clk 00:30:49]} 27.
Bc5+ {[%clk 00:04:44]} {[%emt 00:03:37]} Kd8 {[%clk 00:31:13]} {[%emt
00:00:06]} 28. Bb6+ {[%clk 00:03:58]} {[%emt 00:01:16]} Ke7 {[%clk 00:31:39]}
{[%emt 00:00:04]} 29. Bc5+ {[%clk 00:04:23]} {[%emt 00:00:05]} Kd8 {[%clk
00:32:07]} {[%emt 00:00:02]} 30. Bb6+ {[%clk 00:04:38]} {[%emt 00:00:15]}
1/2-1/2

[Event "Schack-SM 2022: Mastarklassen-Elit"]
[Site "Fyrishov, Idrottsgatan 2, Uppsala, Sweden"]
[Date "2022.07.10"]
[Round "9.1"]
[White "Von Bahr, Oskar"]
[Black "Trost, Edvin"]
[Result "0-1"]
[TimeControl "90 minutes for 40 moves + 30 minutes for the rest of the game + 30 seconds per move from move one."]
[WhiteTitle "IM"]
[BlackTitle "FM"]
[WhiteFideId "1703250"]
[BlackFideId "1729519"]
[WhiteElo "2386"]
[BlackElo "2345"]

1. e4 {[%clk 01:30:57]} {[%emt 00:00:03]} c6 {[%clk 01:30:46]} {[%emt
00:00:15]} 2. d4 {[%clk 01:31:19]} {[%emt 00:00:07]} d5 {[%clk 01:31:12]}
{[%emt 00:00:04]} 3. e5 {[%clk 01:31:24]} {[%emt 00:00:26]} Bf5 {[%clk
01:31:03]} {[%emt 00:00:38]} 4. h4 {[%clk 01:29:09]} {[%emt 00:02:44]} h5
{[%clk 01:31:12]} {[%emt 00:00:22]} 5. Bd3 {[%clk 01:29:10]} {[%emt 00:00:28]}
Bxd3 {[%clk 01:31:36]} {[%emt 00:00:07]} 6. Qxd3 {[%clk 01:29:36]} {[%emt
00:00:04]} Qa5+ {[%clk 01:31:58]} {[%emt 00:00:07]} 7. Nd2 {[%clk 01:28:17]}
{[%emt 00:01:49]} e6 {[%clk 01:31:45]} {[%emt 00:00:44]} 8. Ngf3 {[%clk
01:27:53]} {[%emt 00:00:54]} Nh6 {[%clk 01:31:10]} {[%emt 00:01:06]} 9. O-O
{[%clk 01:28:11]} {[%emt 00:00:11]} Nf5 {[%clk 01:30:54]} {[%emt 00:00:46]} 10.
Nb3 {[%clk 01:27:57]} {[%emt 00:00:44]} Qb5 {[%clk 01:27:29]} {[%emt 00:03:55]}
11. Qd1 {[%clk 01:26:42]} {[%emt 00:01:44]} c5 {[%clk 01:27:11]} {[%emt
00:00:49]} 12. a4 {[%clk 01:16:46]} {[%emt 00:10:27]} Qb6 {[%clk 01:27:17]}
{[%emt 00:00:24]} 13. dxc5 {[%clk 01:14:24]} {[%emt 00:02:51]} Bxc5 {[%clk
01:27:16]} {[%emt 00:00:30]} 14. Nxc5 {[%clk 01:12:48]} {[%emt 00:02:08]} Qxc5
{[%clk 01:27:38]} {[%emt 00:00:07]} 15. b3 {[%clk 01:12:18]} {[%emt 00:01:00]}
Nc6 {[%clk 01:25:58]} {[%emt 00:02:10]} 16. Ba3 {[%clk 01:07:57]} {[%emt
00:04:51]} Qc3 {[%clk 01:25:02]} {[%emt 00:01:26]} 17. Re1 {[%clk 00:57:42]}
{[%emt 00:10:46]} a5 {[%clk 01:19:26]} {[%emt 00:06:05]} 18. Rb1 {[%clk
00:51:42]} {[%emt 00:06:29]} Nb4 {[%clk 01:18:03]} {[%emt 00:01:53]} 19. Re2
{[%clk 00:50:33]} {[%emt 00:01:39]} O-O {[%clk 01:08:52]} {[%emt 00:09:41]} 20.
Bb2 {[%clk 00:50:26]} {[%emt 00:00:38]} Qc7 {[%clk 01:08:35]} {[%emt 00:00:46]}
21. c3 {[%clk 00:47:12]} {[%emt 00:03:45]} Nc6 {[%clk 01:08:45]} {[%emt
00:00:20]} 22. Qd2 {[%clk 00:45:39]} {[%emt 00:02:03]} Qe7 {[%clk 01:01:12]}
{[%emt 00:08:02]} 23. Qf4 {[%clk 00:40:54]} {[%emt 00:05:16]} Rfd8 {[%clk
00:59:40]} {[%emt 00:02:00]} 24. Ra1 {[%clk 00:38:46]} {[%emt 00:02:41]} d4
{[%clk 00:57:08]} {[%emt 00:03:01]} 25. Ba3 {[%clk 00:36:21]} {[%emt 00:02:55]}
Qc7 {[%clk 00:56:44]} {[%emt 00:00:51]} 26. c4 {[%clk 00:34:27]} {[%emt
00:02:27]} d3 {[%clk 00:55:37]} {[%emt 00:01:37]} 27. Re4 {[%clk 00:33:31]}
{[%emt 00:01:26]} Qb6 {[%clk 00:55:13]} {[%emt 00:00:55]} 28. Rb1 {[%clk
00:32:19]} {[%emt 00:01:41]} Ncd4 {[%clk 00:52:55]} {[%emt 00:02:47]} 29. Nxd4
{[%clk 00:27:09]} {[%emt 00:05:40]} Nxd4 {[%clk 00:52:43]} {[%emt 00:00:43]} 30.
Qd2 {[%clk 00:21:08]} {[%emt 00:06:30]} Nxb3 {[%clk 00:44:48]} {[%emt
00:08:27]} 31. Qd1 {[%clk 00:17:58]} {[%emt 00:03:39]} Qc6 {[%clk 00:44:52]}
{[%emt 00:00:25]} 32. Rf4 {[%clk 00:14:21]} {[%emt 00:04:08]} Nd4 {[%clk
00:24:28]} {[%emt 00:20:54]} 33. Qxd3 {[%clk 00:14:22]} {[%emt 00:00:29]} Qxa4
{[%clk 00:23:52]} {[%emt 00:01:06]} 34. Bd6 {[%clk 00:10:20]} {[%emt 00:04:32]}
Nf5 {[%clk 00:23:00]} {[%emt 00:01:22]} 35. Rxb7 {[%clk 00:09:51]} {[%emt
00:00:59]} Qa1+ {[%clk 00:23:06]} {[%emt 00:00:23]} 36. Rb1 {[%clk 00:08:30]}
{[%emt 00:01:52]} Qxe5 {[%clk 00:23:12]} {[%emt 00:00:24]} 37. Bxe5 {[%clk
00:07:31]} {[%emt 00:01:29]} Rxd3 {[%clk 00:23:41]} {[%emt 00:00:01]} 38. c5
{[%clk 00:06:56]} {[%emt 00:01:06]} Rd5 {[%clk 00:22:13]} {[%emt 00:01:56]} 39.
Rb8+ {[%clk 00:03:08]} {[%emt 00:04:19]} Rxb8 {[%clk 00:22:35]} {[%emt
00:00:08]} 40. Bxb8 {[%clk 00:03:35]} {[%emt 00:00:03]} Rxc5 {[%clk 00:22:52]}
{[%emt 00:00:13]} 41. Ra4 {[%clk 00:03:29]} {[%emt 00:00:36]} Rb5 {[%clk
00:22:08]} {[%emt 00:01:13]} 42. Bc7 {[%clk 00:03:19]} {[%emt 00:00:41]} Rb1+
{[%clk 00:22:27]} {[%emt 00:00:11]} 43. Kh2 {[%clk 00:03:45]} {[%emt 00:00:04]}
Rb4 {[%clk 00:22:51]} {[%emt 00:00:06]} 44. Rxa5 {[%clk 00:04:02]} {[%emt
00:00:13]} Rxh4+ {[%clk 00:23:17]} {[%emt 00:00:03]} 45. Kg1 {[%clk 00:04:28]}
{[%emt 00:00:05]} Rc4 {[%clk 00:23:04]} {[%emt 00:00:44]} 46. Bb6 {[%clk
00:02:31]} {[%emt 00:02:26]} Kh7 {[%clk 00:22:07]} {[%emt 00:01:27]} 47. Ra7
{[%clk 00:01:22]} {[%emt 00:01:39]} Kg6 {[%clk 00:22:18]} {[%emt 00:00:19]} 48.
Ra2 {[%clk 00:00:36]} {[%emt 00:01:16]} e5 {[%clk 00:22:01]} {[%emt 00:00:47]}
49. Ba7 {[%clk 00:00:52]} {[%emt 00:00:14]} f6 {[%clk 00:22:21]} {[%emt
00:00:11]} 50. Bb6 {[%clk 00:01:16]} {[%emt 00:00:06]} Nd4 {[%clk 00:22:06]}
{[%emt 00:00:44]} 51. Bxd4 {[%clk 00:26:44]} {[%emt 00:05:02]} Rxd4 {[%clk
00:52:30]} {[%emt 00:00:06]} 52. Ra7 {[%clk 00:26:33]} {[%emt 00:00:41]} Kh6
{[%clk 00:52:51]} {[%emt 00:00:09]} 53. Rf7 {[%clk 00:25:59]} {[%emt 00:01:04]}
Rd6 {[%clk 00:53:13]} {[%emt 00:00:08]} 54. Kf1 {[%clk 00:25:31]} {[%emt
00:00:58]} g6 {[%clk 00:53:27]} {[%emt 00:00:16]} 55. Ke2 {[%clk 00:25:48]}
{[%emt 00:00:12]} Kg5 {[%clk 00:53:52]} {[%emt 00:00:05]} 56. Ra7 {[%clk
00:24:06]} {[%emt 00:02:12]} Rb6 {[%clk 00:53:21]} {[%emt 00:01:02]} 57. Re7
{[%clk 00:22:53]} {[%emt 00:01:43]} Rb2+ {[%clk 00:53:15]} {[%emt 00:00:36]} 58.
Kf3 {[%clk 00:23:09]} {[%emt 00:00:14]} h4 {[%clk 00:52:08]} {[%emt 00:01:36]}
59. Re6 {[%clk 00:19:07]} {[%emt 00:04:33]} Rb3+ {[%clk 00:51:36]} {[%emt
00:01:02]} 60. Ke2 {[%clk 00:19:05]} {[%emt 00:00:32]} h3 {[%clk 00:51:55]}
{[%emt 00:00:11]} 0-1

[Event "Schack-SM 2022: Mastarklassen-Elit"]
[Site "Fyrishov, Idrottsgatan 2, Uppsala, Sweden"]
[Date "2022.07.10"]
[Round "9.2"]
[White "Ernst, Thomas"]
[Black "Thorn, Eric"]
[Result "1-0"]
[TimeControl "90 minutes for 40 moves + 30 minutes for the rest of the game + 30 seconds per move from move one."]
[WhiteTitle "GM"]
[BlackTitle "FM"]
[WhiteFideId "1700065"]
[BlackFideId "1710729"]
[WhiteElo "2289"]
[BlackElo "2366"]

1. e4 {[%clk 01:30:55]} {[%emt 00:00:04]} e5 {[%clk 01:29:18]} {[%emt
00:01:43]} 2. Nf3 {[%clk 01:31:14]} {[%emt 00:00:12]} Nc6 {[%clk 01:29:44]}
{[%emt 00:00:04]} 3. Bb5 {[%clk 01:31:35]} {[%emt 00:00:08]} a6 {[%clk
01:30:08]} {[%emt 00:00:07]} 4. Ba4 {[%clk 01:31:59]} {[%emt 00:00:05]} Nf6
{[%clk 01:30:29]} {[%emt 00:00:10]} 5. O-O {[%clk 01:32:19]} {[%emt 00:00:10]}
Be7 {[%clk 01:30:54]} {[%emt 00:00:04]} 6. Re1 {[%clk 01:32:38]} {[%emt
00:00:10]} b5 {[%clk 01:31:21]} {[%emt 00:00:04]} 7. Bb3 {[%clk 01:33:02]}
{[%emt 00:00:07]} d6 {[%clk 01:31:46]} {[%emt 00:00:05]} 8. c3 {[%clk
01:33:16]} {[%emt 00:00:15]} O-O {[%clk 01:32:09]} {[%emt 00:00:06]} 9. h3
{[%clk 01:33:39]} {[%emt 00:00:07]} Na5 {[%clk 01:32:34]} {[%emt 00:00:06]} 10.
Bc2 {[%clk 01:34:01]} {[%emt 00:00:08]} c5 {[%clk 01:32:58]} {[%emt 00:00:06]}
11. d4 {[%clk 01:34:05]} {[%emt 00:00:26]} Qc7 {[%clk 01:33:06]} {[%emt
00:00:22]} 12. Nbd2 {[%clk 01:34:17]} {[%emt 00:00:18]} cxd4 {[%clk 01:33:29]}
{[%emt 00:00:08]} 13. cxd4 {[%clk 01:34:40]} {[%emt 00:00:07]} Nc6 {[%clk
01:33:54]} {[%emt 00:00:05]} 14. d5 {[%clk 01:34:30]} {[%emt 00:00:39]} Nb4
{[%clk 01:33:59]} {[%emt 00:00:26]} 15. Bb1 {[%clk 01:34:52]} {[%emt 00:00:07]}
a5 {[%clk 01:34:19]} {[%emt 00:00:10]} 16. a3 {[%clk 01:35:07]} {[%emt
00:00:16]} Na6 {[%clk 01:34:41]} {[%emt 00:00:07]} 17. b4 {[%clk 01:35:29]}
{[%emt 00:00:07]} Bd7 {[%clk 01:33:06]} {[%emt 00:02:05]} 18. Qb3 {[%clk
01:29:06]} {[%emt 00:06:53]} axb4 {[%clk 01:23:30]} {[%emt 00:10:07]} 19. axb4
{[%clk 01:29:28]} {[%emt 00:00:09]} Nc5 {[%clk 01:23:40]} {[%emt 00:00:20]} 20.
bxc5 {[%clk 01:29:47]} {[%emt 00:00:10]} Rxa1 {[%clk 01:24:05]} {[%emt
00:00:05]} 21. c6 {[%clk 01:30:09]} {[%emt 00:00:08]} Bc8 {[%clk 01:24:02]}
{[%emt 00:00:33]} 22. Ba3 {[%clk 01:18:28]} {[%emt 00:12:11]} Qa7 {[%clk
01:21:56]} {[%emt 00:02:37]} 23. Bb4 {[%clk 01:18:00]} {[%emt 00:00:57]} Nh5
{[%clk 01:16:15]} {[%emt 00:06:09]} 24. Nf1 {[%clk 01:12:16]} {[%emt 00:06:13]}
Kh8 {[%clk 01:00:38]} {[%emt 00:16:10]} 25. Ne3 {[%clk 01:10:57]} {[%emt
00:01:48]} Nf4 {[%clk 00:50:50]} {[%emt 00:10:19]} 26. Kh2 {[%clk 01:10:25]}
{[%emt 00:01:01]} Rg8 {[%clk 00:44:43]} {[%emt 00:06:38]} 27. Qb2 {[%clk
01:04:43]} {[%emt 00:06:12]} f6 {[%clk 00:36:02]} {[%emt 00:09:11]} 28. Rc1
{[%clk 01:00:58]} {[%emt 00:04:13]} g6 {[%clk 00:25:05]} {[%emt 00:11:29]} 29.
Re1 {[%clk 00:57:39]} {[%emt 00:03:49]} Ra4 {[%clk 00:22:29]} {[%emt 00:03:06]}
30. Rd1 {[%clk 00:51:44]} {[%emt 00:06:25]} Bf8 {[%clk 00:17:08]} {[%emt
00:05:51]} 31. Rd2 {[%clk 00:51:21]} {[%emt 00:00:51]} g5 {[%clk 00:10:01]}
{[%emt 00:07:38]} 32. Ng1 {[%clk 00:46:58]} {[%emt 00:04:53]} Qg7 {[%clk
00:08:36]} {[%emt 00:01:56]} 33. Nf1 {[%clk 00:43:55]} {[%emt 00:03:32]} Qh6
{[%clk 00:07:13]} {[%emt 00:01:54]} 34. Rd1 {[%clk 00:43:17]} {[%emt 00:01:07]}
Qh5 {[%clk 00:02:47]} {[%emt 00:04:56]} 35. Bc2 {[%clk 00:41:05]} {[%emt
00:02:42]} Ra7 {[%clk 00:02:19]} {[%emt 00:00:58]} 36. Bd2 {[%clk 00:39:48]}
{[%emt 00:01:47]} Rag7 {[%clk 00:02:10]} {[%emt 00:00:40]} 37. Ra1 {[%clk
00:38:38]} {[%emt 00:01:40]} Qh6 {[%clk 00:01:01]} {[%emt 00:01:40]} 38. Ra8
{[%clk 00:37:48]} {[%emt 00:01:18]} Be7 {[%clk 00:00:55]} {[%emt 00:00:37]} 39.
Qxb5 {[%clk 00:35:18]} {[%emt 00:03:00]} g4 {[%clk 00:00:36]} {[%emt 00:00:50]}
40. Rxc8 {[%clk 00:34:52]} {[%emt 00:00:55]} Rxc8 {[%clk 00:00:58]} {[%emt
00:00:08]} 41. Qb7 {[%clk 00:35:13]} {[%emt 00:00:09]} Re8 {[%clk 00:27:38]}
{[%emt 00:03:49]} 42. c7 {[%clk 01:02:25]} {[%emt 00:03:17]} Rgg8 {[%clk
00:22:03]} {[%emt 00:06:07]} 43. Ba4 {[%clk 01:01:15]} {[%emt 00:01:40]} Rc8
{[%clk 00:21:42]} {[%emt 00:00:51]} 44. Bd7 {[%clk 01:00:36]} {[%emt 00:01:08]}
Qf8 {[%clk 00:21:19]} {[%emt 00:00:54]} 45. hxg4 {[%clk 00:57:18]} {[%emt
00:03:47]} Nd3 {[%clk 00:19:49]} {[%emt 00:02:02]} 46. Be3 {[%clk 00:55:42]}
{[%emt 00:02:04]} Nc5 {[%clk 00:17:53]} {[%emt 00:02:28]} 47. Bxc5 {[%clk
00:56:00]} {[%emt 00:00:11]} dxc5 {[%clk 00:18:19]} {[%emt 00:00:05]} 48. Qc6
{[%clk 00:54:44]} {[%emt 00:01:45]} Rxc7 {[%clk 00:01:37]} {[%emt 00:17:13]} 49.
Qxc7 {[%clk 00:55:05]} {[%emt 00:00:08]} Qb8 {[%clk 00:02:02]} {[%emt
00:00:05]} 50. Qc6 {[%clk 00:53:54]} {[%emt 00:01:39]} Qb4 {[%clk 00:01:22]}
{[%emt 00:01:12]} 51. d6 {[%clk 00:49:28]} {[%emt 00:04:55]} Bd8 {[%clk
00:01:15]} {[%emt 00:00:39]} 52. Be6 {[%clk 00:48:47]} {[%emt 00:01:09]} Rf8
{[%clk 00:01:39]} {[%emt 00:00:09]} 53. Ne3 {[%clk 00:46:45]} {[%emt 00:02:29]}
1-0

[Event "Schack-SM 2022: Mastarklassen-Elit"]
[Site "Fyrishov, Idrottsgatan 2, Uppsala, Sweden"]
[Date "2022.07.10"]
[Round "9.3"]
[White "Andersson, Tommy"]
[Black "Engqvist, Thomas"]
[Result "1-0"]
[TimeControl "90 minutes for 40 moves + 30 minutes for the rest of the game + 30 seconds per move from move one."]
[WhiteTitle "IM"]
[BlackTitle "IM"]
[WhiteFideId "1703803"]
[BlackFideId "1700332"]
[WhiteElo "2384"]
[BlackElo "2330"]

1. d4 {[%clk 01:30:50]} {[%emt 00:00:10]} Nf6 {[%clk 01:30:40]} {[%emt
00:00:21]} 2. c4 {[%clk 01:31:12]} {[%emt 00:00:08]} e6 {[%clk 01:30:51]}
{[%emt 00:00:18]} 3. Nf3 {[%clk 01:31:27]} {[%emt 00:00:15]} Bb4+ {[%clk
01:31:09]} {[%emt 00:00:11]} 4. Bd2 {[%clk 01:31:30]} {[%emt 00:00:27]} c5
{[%clk 01:30:34]} {[%emt 00:01:06]} 5. Bxb4 {[%clk 01:30:13]} {[%emt 00:01:48]}
cxb4 {[%clk 01:30:58]} {[%emt 00:00:05]} 6. g3 {[%clk 01:30:10]} {[%emt
00:00:33]} O-O {[%clk 01:30:40]} {[%emt 00:00:48]} 7. Bg2 {[%clk 01:30:35]}
{[%emt 00:00:05]} d6 {[%clk 01:30:40]} {[%emt 00:00:30]} 8. O-O {[%clk
01:29:59]} {[%emt 00:01:05]} Qc7 {[%clk 01:31:01]} {[%emt 00:00:10]} 9. Nbd2
{[%clk 01:28:00]} {[%emt 00:02:29]} a5 {[%clk 01:17:24]} {[%emt 00:14:07]} 10.
Rc1 {[%clk 01:24:50]} {[%emt 00:03:40]} b6 {[%clk 01:10:02]} {[%emt 00:07:52]}
11. a3 {[%clk 01:07:55]} {[%emt 00:17:25]} Na6 {[%clk 01:07:19]} {[%emt
00:03:13]} 12. Ne1 {[%clk 01:03:59]} {[%emt 00:04:26]} Bb7 {[%clk 01:07:22]}
{[%emt 00:00:28]} 13. Bxb7 {[%clk 01:03:56]} {[%emt 00:00:32]} Qxb7 {[%clk
01:07:46]} {[%emt 00:00:06]} 14. Nd3 {[%clk 01:04:15]} {[%emt 00:00:11]} bxa3
{[%clk 01:07:54]} {[%emt 00:00:22]} 15. bxa3 {[%clk 01:04:22]} {[%emt
00:00:22]} e5 {[%clk 01:04:33]} {[%emt 00:03:52]} 16. e3 {[%clk 01:00:47]}
{[%emt 00:04:05]} Rfe8 {[%clk 01:01:46]} {[%emt 00:03:17]} 17. Rb1 {[%clk
00:56:02]} {[%emt 00:05:15]} Rab8 {[%clk 00:47:04]} {[%emt 00:15:11]} 18. Nb2
{[%clk 00:46:13]} {[%emt 00:10:19]} Qd7 {[%clk 00:39:05]} {[%emt 00:08:29]} 19.
Na4 {[%clk 00:39:01]} {[%emt 00:07:42]} exd4 {[%clk 00:33:21]} {[%emt
00:06:15]} 20. exd4 {[%clk 00:39:24]} {[%emt 00:00:07]} b5 {[%clk 00:33:20]}
{[%emt 00:00:31]} 21. cxb5 {[%clk 00:38:23]} {[%emt 00:01:31]} Rxb5 {[%clk
00:33:44]} {[%emt 00:00:05]} 22. Rxb5 {[%clk 00:31:31]} {[%emt 00:07:23]} Qxb5
{[%clk 00:33:39]} {[%emt 00:00:35]} 23. Qb3 {[%clk 00:30:44]} {[%emt 00:01:18]}
Qe2 {[%clk 00:28:11]} {[%emt 00:05:57]} 24. Qc3 {[%clk 00:27:55]} {[%emt
00:03:19]} Qb5 {[%clk 00:20:05]} {[%emt 00:08:36]} 25. Qc4 {[%clk 00:27:23]}
{[%emt 00:01:03]} Rb8 {[%clk 00:09:21]} {[%emt 00:11:13]} 26. Qxb5 {[%clk
00:19:55]} {[%emt 00:07:58]} Rxb5 {[%clk 00:09:46]} {[%emt 00:00:05]} 27. Rc1
{[%clk 00:20:08]} {[%emt 00:00:17]} Ne8 {[%clk 00:10:12]} {[%emt 00:00:04]} 28.
Rc8 {[%clk 00:16:46]} {[%emt 00:03:52]} Kf8 {[%clk 00:03:54]} {[%emt 00:06:48]}
29. Nc3 {[%clk 00:15:04]} {[%emt 00:02:12]} Rb8 {[%clk 00:02:41]} {[%emt
00:01:43]} 30. Rxb8 {[%clk 00:12:46]} {[%emt 00:02:48]} Nxb8 {[%clk 00:03:07]}
{[%emt 00:00:04]} 31. Nc4 {[%clk 00:12:58]} {[%emt 00:00:18]} Nc6 {[%clk
00:03:00]} {[%emt 00:00:37]} 32. d5 {[%clk 00:13:09]} {[%emt 00:00:19]} Ne7
{[%clk 00:03:16]} {[%emt 00:00:14]} 33. Nxa5 {[%clk 00:13:24]} {[%emt
00:00:14]} Nf6 {[%clk 00:02:50]} {[%emt 00:00:56]} 34. Nc4 {[%clk 00:10:37]}
{[%emt 00:03:17]} Nc8 {[%clk 00:03:16]} {[%emt 00:00:05]} 35. f3 {[%clk
00:10:39]} {[%emt 00:00:28]} Ke7 {[%clk 00:03:14]} {[%emt 00:00:32]} 36. Kf2
{[%clk 00:10:42]} {[%emt 00:00:27]} Kd7 {[%clk 00:03:39]} {[%emt 00:00:05]} 37.
Ke3 {[%clk 00:10:26]} {[%emt 00:00:45]} Ne7 {[%clk 00:03:54]} {[%emt 00:00:15]}
38. Kd3 {[%clk 00:11:15]} {[%emt 00:01:57]} 1-0